bitfinex/quotes_SOLUSD_20260304
["timestamp","ask_amount","ask_price","bid_price","bid_amount"]
[1772655424018,1e-08,93.44,93.383,0.96577131]
[1772655424202,1e-08,93.44,93.386,0.28432314]
[1772655424411,1e-08,93.44,93.389,0.96577131]
[1772655424613,1e-08,93.44,93.397,0.96577131]
[1772655425502,1e-08,93.44,93.388,37.47804856]
[1772655425503,1e-08,93.44,93.388,10.70801387]
[1772655425706,1e-08,93.44,93.389,0.96577131]
[1772655426726,1e-08,93.44,93.369,0.96577131]
[1772655426934,0.28432314,93.424,93.331,0.96577131]
[1772655427110,0.28432314,93.41,93.331,0.96577131]
[1772655427427,0.28432314,93.41,93.33,37.50133933]
[1772655427428,1.02456552,93.403,93.337,0.96577131]
[1772655428306,1e-08,93.44,93.345,0.96577131]
[1772655428506,104.9,93.622,93.342,5.10909883]
[1772655428507,7.66660367,93.567,93.359,0.28432314]
[1772655428713,1.21347356,93.542,93.466,3.69383402]
[1772655428920,6.6366055,93.656,93.535,0.27926304]
[1772655429136,6.6366055,93.656,93.536,0.28432314]
[1772655429327,3.69383402,93.653,93.536,0.56358618]
[1772655429630,6.6366055,93.656,93.536,0.56358618]
[1772655429828,6.6366055,93.656,93.528,5.58311205]
[1772655430033,6.6366055,93.656,93.535,0.292582]
[1772655430232,6.6366055,93.656,93.529,0.292582]
[1772655430539,6.6366055,93.656,93.528,5.58311205]
[1772655430737,3.69383402,93.653,93.531,0.28432314]
[1772655430922,3.69383402,93.653,93.529,10.69187097]
[1772655430923,1.07131199,93.591,93.536,0.30791972]
[1772655431435,6.6366055,93.656,93.553,0.14216157]
[1772655431632,6.6366055,93.656,93.547,0.28432314]
[1772655431837,3.69383402,93.653,93.547,0.28432314]
[1772655432025,0.28432314,93.652,93.549,0.28432314]
[1772655432231,3.69383402,93.653,93.533,0.96577131]
[1772655432418,4.82477569,93.648,93.52,0.96577131]
[1772655432618,6.6366055,93.656,93.529,10.69187097]
[1772655432619,0.14216157,93.628,93.529,10.69187097]
[1772655432829,0.14216157,93.628,93.523,10.69246309]
[1772655432830,0.28432314,93.624,93.523,10.69246309]
[1772655433019,0.28432314,93.624,93.528,16.27505896]
[1772655433414,1.02456552,93.609,93.528,5.58311205]
[1772655433615,1.02456552,93.593,93.528,5.58311205]
[1772655433812,1.02456552,93.587,93.528,5.58311205]
[1772655434018,1.02456552,93.573,93.528,5.58311205]
[1772655434217,1.02456552,93.573,93.508,0.96577131]
[1772655434432,1.02456552,93.573,93.501,10.69498299]
[1772655434433,1.02456552,93.573,93.51,1.25348717]
[1772655435040,0.28432314,93.603,93.512,1.25348717]
[1772655435222,0.28432314,93.603,93.516,1.25348717]
[1772655435636,0.02698916,93.602,93.516,1.25348717]
[1772655437117,0.02698916,93.602,93.516,10.69330455]
[1772655437324,0.02698916,93.602,93.517,1.25348717]
[1772655439045,0.02698916,93.602,93.529,1.27776583]
[1772655440335,0.11448071,93.594,93.529,1.27776583]
[1772655440629,0.11448071,93.592,93.529,1.27776583]
[1772655441425,0.11448071,93.592,93.529,1.0092262]
[1772655441840,0.41297073,93.572,93.5,10.9795103]
[1772655442143,0.28432314,93.615,93.505,0.28432314]
[1772655442747,164.9,93.719,93.5,10.69518716]
[1772655442748,0.42768841,93.588,93.5,10.69518716]
[1772655442920,0.28432314,93.569,93.5,10.69518716]
[1772655443238,0.28432314,93.566,93.482,0.14216157]
[1772655443445,0.28432314,93.566,93.49,1.27776583]
[1772655443658,0.44223704,93.566,93.49,1.27776583]
[1772655443829,0.44223704,93.566,93.505,0.28432314]
[1772655444029,0.44223704,93.566,93.506,1.27776583]
[1772655444447,20.43147601,93.689,93.506,1.27776583]
[1772655444448,0.44223704,93.562,93.506,1.27776583]
[1772655444622,3.69383402,93.606,93.506,1.27776583]
[1772655444822,0.45661857,93.589,93.506,1.27776583]
[1772655445025,0.28432314,93.58,93.506,1.27776583]
[1772655445337,0.28432314,93.575,93.508,1.27776583]
[1772655445548,0.75515806,93.575,93.508,1.27776583]
[1772655445850,0.28432314,93.573,93.508,1.27776583]
[1772655446027,0.75515806,93.573,93.508,1.27776583]
[1772655446346,0.48488797,93.562,93.508,1.27776583]
[1772655447147,0.49837975,93.605,93.508,1.27776583]
[1772655447445,0.49837975,93.577,93.51,1.34145838]
[1772655447647,0.28432314,93.564,93.51,1.34145838]
[1772655447846,0.51220166,93.563,93.51,1.34145838]
[1772655448747,0.28432314,93.558,93.477,1.34145838]
[1772655449079,0.5258648,93.543,93.477,1.34145838]
[1772655449349,0.5258648,93.543,93.464,26.74824509]
[1772655449350,0.5258648,93.543,93.479,1.34145838]
[1772655449945,0.5258648,93.543,93.475,0.28432314]
[1772655450150,0.5258648,93.543,93.454,3.69383402]
[1772655450322,0.5258648,93.543,93.446,37.45478671]
[1772655450523,0.5258648,93.543,93.447,0.14216157]
[1772655450722,0.5258648,93.543,93.45,0.28432314]
[1772655451558,0.5258648,93.543,93.451,80.255963]
[1772655451729,0.5258648,93.543,93.455,0.28432314]
[1772655451924,0.5258648,93.543,93.465,0.28432314]
[1772655452254,0.5258648,93.543,93.476,1.34145838]
[1772655453870,0.5258648,93.543,93.478,1.34145838]
[1772655455649,4.82477569,93.576,93.403,42.82488933]
[1772655455650,1.23712255,93.525,93.444,1.62578152]
[1772655455956,3.69383402,93.573,93.425,4.82477569]
[1772655455957,1.23712255,93.523,93.449,1.62578152]
[1772655456649,1.23712255,93.523,93.449,1.48361995]
[1772655456971,1.23712255,93.523,93.457,1.34145838]
[1772655458861,1.23712255,93.523,93.459,1.34145838]
[1772655459067,1.23712255,93.543,93.473,1.34145838]
[1772655459359,4.82477569,93.608,93.486,0.28432314]
[1772655459569,4.82477569,93.608,93.466,4.82477569]
[1772655459570,1.23712255,93.597,93.497,1.34145838]
[1772655459858,1.23712255,93.589,93.497,1.34145838]
[1772655460067,1.23712255,93.577,93.497,1.34145838]
[1772655460444,1.23712255,93.573,93.497,1.34145838]
[1772655460645,1.23712255,93.569,93.497,1.34145838]
[1772655460844,0.28432314,93.568,93.499,1.34145838]
[1772655461063,8.51860971,93.606,93.499,1.34145838]
[1772655461064,1.23712255,93.567,93.499,1.34145838]
[1772655461444,1.23712255,93.563,93.499,1.34145838]
[1772655462774,1.23712255,93.563,93.506,1.62578152]
[1772655463151,1.23712255,93.563,93.506,1.34145838]
[1772655463346,1.23712255,93.555,93.506,1.34145838]
[1772655463564,1.23712255,93.553,93.506,1.34145838]
[1772655464649,1.23712255,93.553,93.506,1.98605838]
[1772655465151,1.23712255,93.553,93.507,1.34145838]
[1772655466748,1.23712255,93.605,93.508,1.34145838]
[1772655466959,1.23712255,93.605,93.51,1.34145838]
[1772655467164,1.23712255,93.595,93.51,1.34145838]
[1772655467858,3.69383402,93.606,93.51,1.34145838]
[1772655467859,1.23712255,93.581,93.51,1.34145838]
[1772655468059,1.23712255,93.565,93.507,12.03584489]
[1772655468257,0.28432314,93.568,93.507,12.03584489]
[1772655468258,1.23712255,93.563,93.508,1.34145838]
[1772655469661,1.23712255,93.563,93.51,1.41630612]
[1772655470167,1.4037295,93.575,93.516,1.41630612]
[1772655470649,1.4037295,93.573,93.516,1.41630612]
[1772655471652,1.4037295,93.573,93.509,37.42955223]
[1772655471653,1.4037295,93.573,93.518,1.41630612]
[1772655476968,1.4037295,93.559,93.506,0.6446]
[1772655477670,1.4037295,93.559,93.508,1.41630612]
[1772655478175,1.4037295,93.62,93.508,1.41630612]
[1772655478487,0.28432314,93.588,93.508,1.41630612]
[1772655478654,1.4037295,93.569,93.506,0.6446]
[1772655478858,1.4037295,93.545,93.472,1.41630612]
[1772655479059,1.4037295,93.539,93.472,1.41630612]
[1772655479374,0.28432314,93.534,93.474,1.41630612]
[1772655479574,1.4037295,93.529,93.474,1.41630612]
[1772655482080,1.4037295,93.529,93.452,26.75153318]
[1772655482081,1.4037295,93.519,93.46,1.41630612]
[1772655482666,1.4037295,93.519,93.46,12.11607072]
[1772655482873,1.4037295,93.519,93.461,1.41630612]
[1772655483886,1.4037295,93.509,93.442,1.41630612]
[1772655484472,1.4037295,93.499,93.442,1.41630612]
[1772655485377,1.4037295,93.499,93.434,26.75658443]
[1772655485378,1.4037295,93.499,93.444,1.41630612]
[1772655487767,0.28432314,93.494,93.444,1.41630612]
[1772655487968,1.4037295,93.489,93.435,2.2936326]
[1772655488274,1.4037295,93.489,93.437,1.41630612]
[1772655489156,1.4037295,93.487,93.435,0.87732648]
[1772655489357,1.4037295,93.479,93.435,0.87732648]
[1772655490164,0.87503207,93.469,93.42,1.41630612]
[1772655490372,4.82477569,93.523,93.38,0.2]
[1772655490373,0.14216157,93.454,93.405,1.41630612]
[1772655490682,0.87503207,93.453,93.405,1.41630612]
[1772655492075,0.14216157,93.476,93.405,1.41630612]
[1772655492280,0.28432314,93.457,93.405,1.41630612]
[1772655492582,0.28432314,93.446,93.405,1.41630612]
[1772655492883,0.90775079,93.443,93.393,1.41630612]
[1772655493361,0.90775079,93.481,93.396,1.41630612]
[1772655493561,0.90775079,93.481,93.398,1.41630612]
[1772655493784,0.92091265,93.47,93.398,1.41630612]
[1772655493975,0.28432314,93.464,93.398,1.41630612]
[1772655494176,1.20523579,93.464,93.398,1.41630612]
[1772655494484,1.06307422,93.464,93.398,1.41630612]
[1772655494684,0.14216157,93.463,93.398,1.41630612]
[1772655495266,0.93140849,93.463,93.398,1.41630612]
[1772655495793,0.93140849,93.463,93.4,1.41630612]
[1772655496101,0.14216157,93.442,93.381,1.41630612]
[1772655496272,0.94179037,93.425,93.38,0.2]
[1772655496475,0.28432314,93.414,93.38,0.2]
[1772655496778,0.28432314,93.403,93.362,1.41630612]
[1772655497582,0.76236228,93.402,93.362,1.41630612]
[1772655498384,0.76236228,93.402,93.336,1.41630612]
[1772655498789,0.78262592,93.428,93.336,1.41630612]
[1772655498981,0.78262592,93.412,93.336,1.41630612]
[1772655499286,0.28432314,93.413,93.336,1.41630612]
[1772655499287,0.28432314,93.407,93.336,1.41630612]
[1772655499494,0.78262592,93.407,93.336,1.41630612]
[1772655500491,0.78262592,93.407,93.3,0.2]
[1772655500492,0.78262592,93.407,93.338,1.64143781]
[1772655502888,3.69383402,93.435,93.322,1.64143781]
[1772655502889,0.82177375,93.403,93.322,1.64143781]
[1772655503081,0.82177375,93.382,93.301,1.64143781]
[1772655503390,0.82177375,93.362,93.302,1.64143781]
[1772655503587,0.28432314,93.361,93.302,1.64143781]
[1772655503787,0.83133465,93.353,93.302,1.64143781]
[1772655504202,0.83133465,93.353,93.3,1.84143781]
[1772655505981,0.83133465,93.353,93.3,0.2]
[1772655506569,0.28432314,93.34,93.3,0.2]
[1772655506907,0.86604654,93.335,93.29,0.2]
[1772655507892,0.28432314,93.322,93.278,1.64697402]
[1772655508191,0.47522597,93.315,93.261,1.64697402]
[1772655509167,0.48445536,93.305,93.261,1.64697402]
[1772655509372,0.48445536,93.295,93.25,1.64697402]
[1772655511176,0.50259726,93.342,93.252,1.64697402]
[1772655511673,0.51150606,93.32,93.252,1.64697402]
[1772655511888,0.28432314,93.315,93.252,1.64697402]
[1772655513196,0.52031217,93.315,93.254,1.64697402]
[1772655515595,0.52031217,93.315,93.256,1.64697402]
[1772655519398,0.57108407,93.309,93.256,1.64697402]
[1772655519703,0.28432314,93.298,93.256,1.64697402]
[1772655521094,0.58723925,93.313,93.256,1.64697402]
[1772655521298,0.28432314,93.312,93.257,1.64697402]
[1772655521492,0.28432314,93.31,93.257,1.64697402]
[1772655522187,0.28432314,93.328,93.257,1.64697402]
[1772655522498,3.69383402,93.34,93.257,1.64697402]
[1772655522499,0.28432314,93.308,93.257,1.64697402]
[1772655522700,0.28432314,93.306,93.257,1.64697402]
[1772655522901,0.88569135,93.306,93.257,1.64697402]
[1772655523794,0.60831199,93.305,93.257,1.64697402]
[1772655525081,0.61521139,93.301,93.249,0.87903355]
[1772655525290,0.61521139,93.279,93.249,0.87903355]
[1772655525505,0.61521139,93.279,93.165,1.07336446]
[1772655525506,0.28432314,93.274,93.197,1.81961854]
[1772655526182,0.28432314,93.283,93.199,1.81961854]
[1772655526701,0.28432314,93.302,93.209,1.81961854]
[1772655526891,0.28432314,93.302,93.211,1.81961854]
[1772655527091,5.10909883,93.302,93.211,1.81961854]
[1772655527299,0.28432314,93.29,93.211,1.81961854]
[1772655527597,0.02144379,93.289,93.211,1.81961854]
[1772655529204,0.02144379,93.289,93.213,1.81961854]
[1772655530707,515.8,93.511,93.213,1.81961854]
[1772655531019,3.69383402,93.307,93.213,1.83034043]
[1772655532705,3.69383402,93.307,93.214,1.83034043]
[1772655532886,0.03820569,93.293,93.214,1.83034043]
[1772655533091,0.03820569,93.293,93.216,1.83034043]
[1772655535387,0.03820569,93.293,93.217,10.72765697]
[1772655535598,0.03820569,93.293,93.218,1.83034043]
[1772655536111,0.03820569,93.293,93.217,10.72765697]
[1772655536112,0.0575836,93.317,93.222,1.83034043]
[1772655537387,0.0575836,93.317,93.224,2.11466357]
[1772655539813,0.0575836,93.317,93.226,2.11466357]
[1772655540596,0.09086477,93.348,93.226,2.11466357]
[1772655540798,0.09086477,93.348,93.245,1.83034043]
[1772655540993,0.09086477,93.4,93.267,1.83034043]
[1772655541212,0.09086477,93.396,93.283,1.83034043]
[1772655541712,0.09086477,93.396,93.285,1.83034043]
[1772655542011,0.09086477,93.396,93.293,1.83034043]
[1772655544510,0.09086477,93.396,93.295,1.83034043]
[1772655547606,0.09086477,93.396,93.297,1.83034043]
[1772655548524,0.09086477,93.396,93.299,1.83034043]
[1772655550522,0.09086477,93.396,93.304,10.71765411]
[1772655550712,0.09086477,93.396,93.305,1.83034043]
[1772655552610,0.09086477,93.396,93.307,1.83034043]
[1772655552810,0.09086477,93.396,93.313,1.83034043]
[1772655553525,0.15791782,93.39,93.313,1.83034043]
[1772655553932,0.16302623,93.38,93.241,1.83034043]
[1772655554226,0.16302623,93.37,93.244,1.83034043]
[1772655554724,0.16302623,93.37,93.256,1.83034043]
[1772655554927,0.16302623,93.37,93.272,1.83034043]
[1772655555114,0.16302623,93.37,93.282,1.83034043]
[1772655556517,0.16302623,93.37,93.284,1.83034043]
[1772655556829,0.14216157,93.369,93.292,1.83034043]
[1772655557334,0.18050217,93.369,93.292,1.83034043]
[1772655557825,0.28432314,93.362,93.292,1.83034043]
[1772655558835,0.19496845,93.359,93.293,10.71891781]
[1772655559135,0.19496845,93.359,93.294,1.8401168]
[1772655560241,0.19962629,93.372,93.294,1.8401168]
[1772655560416,0.28432314,93.369,93.294,1.8401168]
[1772655560738,0.28432314,93.361,93.294,1.8401168]
[1772655560939,0.48856485,93.361,93.296,1.8401168]
[1772655561118,104.9,93.381,93.296,1.8401168]
[1772655561119,0.20424171,93.359,93.296,1.8401168]
[1772655563145,0.20424171,93.359,93.298,1.8401168]
[1772655567635,0.28432314,93.356,93.298,1.8401168]
[1772655567841,0.23941353,93.349,93.298,1.8401168]
[1772655568014,3.69383402,93.37,93.237,104.4]
[1772655568015,0.23941353,93.347,93.237,104.4]
[1772655568218,0.28432314,93.326,93.219,4.82477569]
[1772655568415,1.81642455,93.309,93.218,37.54639661]
[1772655569336,1.81642455,93.309,93.219,0.28432314]
[1772655569938,1.81642455,93.309,93.211,3.69383402]
[1772655570132,1.81642455,93.309,93.212,1.78706856]
[1772655570631,1.81642455,93.309,93.223,0.28432314]
[1772655570833,1.81642455,93.309,93.236,1.78706856]
[1772655571037,1.81642455,93.309,93.242,1.78706856]
[1772655571843,0.28432314,93.306,93.242,1.78706856]
[1772655572137,1.81642455,93.289,93.242,1.78706856]
[1772655578432,2.10074769,93.311,93.242,1.78706856]
[1772655580331,1.81642455,93.298,93.242,1.78706856]
[1772655580644,1.81642455,93.278,93.242,1.78706856]
[1772655580847,1.81642455,93.268,93.234,1.78706856]
[1772655581026,1.81642455,93.268,93.203,58.96917106]
[1772655581027,1.81642455,93.268,93.219,1.78706856]
[1772655582044,0.28432314,93.29,93.221,1.78706856]
[1772655582253,2.10074769,93.284,93.221,1.78706856]
[1772655582949,2.10074769,93.309,93.223,1.78706856]
[1772655583154,1.81642455,93.309,93.223,1.78706856]
[1772655583456,1.81642455,93.299,93.223,1.78706856]
[1772655583641,1.81642455,93.289,93.223,1.78706856]
[1772655584034,1.81642455,93.279,93.223,1.78706856]
[1772655584534,1.81642455,93.279,93.225,1.78706856]
[1772655586447,1.81642455,93.271,93.225,1.78706856]
[1772655586655,1.81642455,93.269,93.225,1.78706856]
[1772655587037,2.10074769,93.328,93.225,1.78706856]
[1772655587254,2.10074769,93.311,93.227,1.78706856]
[1772655588459,2.10074769,93.311,93.229,1.88630818]
[1772655590556,1.8601363,93.306,93.229,1.88630818]
[1772655590738,1.8601363,93.302,93.229,1.88630818]
[1772655591845,5.55397032,93.293,93.229,1.88630818]
[1772655592044,1.8601363,93.291,93.229,1.88630818]
[1772655594555,1.8601363,93.269,93.229,1.88630818]
[1772655596554,1.8601363,93.259,93.229,1.88630818]
[1772655597442,1.8601363,93.259,93.204,1.88630818]
[1772655597951,3.69383402,93.29,93.205,1.88630818]
[1772655597952,1.8601363,93.281,93.205,1.88630818]
[1772655600243,3.69383402,93.29,93.205,1.88630818]
[1772655600244,1.8601363,93.272,93.205,1.88630818]
[1772655601447,3.69383402,93.28,93.205,1.88630818]
[1772655601448,1.8601363,93.26,93.205,1.88630818]
[1772655601760,0.28432314,93.256,93.205,1.88630818]
[1772655601941,2.14445944,93.256,93.205,1.88630818]
[1772655604567,1.8601363,93.279,93.207,1.88630818]
[1772655604742,0.28432314,93.278,93.207,1.88630818]
[1772655604944,1.8601363,93.259,93.207,1.88630818]
[1772655607472,1.8601363,93.281,93.209,1.88630818]
[1772655608155,1.8601363,93.281,93.215,1.88630818]
[1772655608349,1.8601363,93.312,93.223,1.88630818]
[1772655608859,0.28432314,93.301,93.225,1.88630818]
[1772655609064,1.8601363,93.288,93.225,1.88630818]
[1772655609666,2.14445944,93.311,93.225,1.88630818]
[1772655614268,2.14445944,93.311,93.227,1.88630818]
[1772655614269,1.8601363,93.303,93.227,1.88630818]
[1772655614475,1.8601363,93.302,93.227,1.88630818]
[1772655616072,1.8601363,93.302,93.233,1.88630818]
[1772655616276,1.8601363,93.329,93.237,1.88630818]
[1772655616454,1.8601363,93.329,93.257,1.88630818]
[1772655616654,4.82477569,93.353,93.231,3.69383402]
[1772655616655,1.8601363,93.384,93.276,0.28432314]
[1772655616873,1.8601363,93.384,93.283,1.88630818]
[1772655617173,1.8601363,93.371,93.283,1.88630818]
[1772655617876,1.8601363,93.369,93.283,1.88630818]
[1772655618076,1.8601363,93.363,93.283,1.88630818]
[1772655618458,0.28432314,93.362,93.283,1.88630818]
[1772655618655,0.28432314,93.342,93.283,1.88630818]
[1772655618855,1.82547743,93.339,93.283,1.88630818]
[1772655619871,1.82547743,93.339,93.285,1.90639814]
[1772655621772,1.32547743,93.339,93.285,1.90639814]
[1772655623858,1.54539558,93.331,93.285,1.90639814]
[1772655624070,1.54539558,93.329,93.285,1.90639814]
[1772655626873,3.69383402,93.366,93.285,1.90639814]
[1772655627078,78.08910095,93.535,93.285,1.90639814]
[1772655627079,1.54376785,93.341,93.285,1.90639814]
[1772655627279,0.28432314,93.334,93.285,1.90639814]
[1772655627586,1.82809099,93.334,93.285,1.90639814]
[1772655628787,1.82809099,93.334,93.261,10.72257949]
[1772655628971,1.54565396,93.329,93.262,1.88433168]
[1772655629375,1.54565396,93.329,93.264,1.88433168]
[1772655635387,1.54565396,93.329,93.263,10.72236578]
[1772655635388,1.54565396,93.329,93.266,1.88433168]
[1772655637369,1.54565396,93.329,93.268,1.88433168]
[1772655639095,1.83878081,93.349,93.268,1.88433168]
[1772655639479,1.83878081,93.349,93.27,1.88433168]
[1772655640575,1.83878081,93.349,93.272,1.88433168]
[1772655641197,104.9,93.357,93.282,1.88433168]
[1772655641198,1.55609962,93.357,93.282,1.88433168]
[1772655641583,1.55609962,93.384,93.297,0.28432314]
[1772655641780,1.55609962,93.384,93.302,1.88433168]
[1772655642200,1.55472309,93.38,93.302,1.88433168]
[1772655642496,1.55472309,93.368,93.302,1.88433168]
[1772655642704,1.55472309,93.368,93.304,1.88433168]
[1772655644683,1.55472309,93.368,93.308,1.88433168]
[1772655644879,1.55061528,93.392,93.312,1.88433168]
[1772655645396,1.55061528,93.388,93.312,1.88433168]
[1772655645901,1.55061528,93.388,93.314,2.16865482]
[1772655649106,1.55061528,93.388,93.316,2.16865482]
[1772655651004,1.55061528,93.388,93.32,0.28432314]
[1772655651212,1.55061528,93.388,93.323,1.7469281]
[1772655652107,0.1,93.4,93.333,1.7469281]
[1772655652604,0.38432314,93.4,93.333,1.7469281]
[1772655652788,1.53909701,93.399,93.333,1.7469281]
[1772655653286,1.53909701,93.389,93.335,1.7469281]
[1772655653703,1.53788225,93.397,93.335,1.7469281]
[1772655655600,1.53788225,93.397,93.337,1.7469281]
[1772655655904,0.1,93.4,93.344,0.28432314]
[1772655656086,0.1,93.4,93.336,37.4989286]
[1772655656087,0.1,93.4,93.353,1.7469281]
[1772655657794,0.1,93.4,93.355,1.7469281]
[1772655659917,0.1,93.4,93.357,1.7469281]
[1772655660210,0.1,93.4,93.356,37.49089506]
[1772655660211,0.29353027,93.435,93.374,1.7469281]
[1772655660522,0.29353027,93.435,93.382,1.7469281]
[1772655661110,0.29353027,93.435,93.383,1.7469281]
[1772655661308,2.06083499,93.435,93.383,1.7469281]
[1772655661705,2.06083499,93.435,93.359,3.69383402]
[1772655661706,0.28432314,93.422,93.359,1.7469281]
[1772655662009,0.29353027,93.435,93.36,1.7469281]
[1772655662010,1.76730472,93.432,93.36,1.7469281]
[1772655662316,1.76730472,93.428,93.362,1.7469281]
[1772655662495,0.28432314,93.425,93.362,1.7469281]
[1772655662695,1.76730472,93.418,93.362,1.7469281]
[1772655664012,1.76730472,93.418,93.364,1.7469281]
[1772655665119,1.76730472,93.418,93.366,1.7469281]
[1772655667721,1.76730472,93.418,93.368,1.7469281]
[1772655671018,0.29353027,93.435,93.35,1.7469281]
[1772655671019,0.28432314,93.401,93.35,1.7469281]
[1772655671220,1.76730472,93.388,93.35,1.7469281]
[1772655671733,1.76730472,93.382,93.341,1.7469281]
[1772655671928,1.76730472,93.378,93.331,1.7469281]
[1772655673825,1.76730472,93.378,93.331,2.3901281]
[1772655674017,1.76730472,93.378,93.331,0.6432]
[1772655674333,0.1,93.52,93.285,1.7469281]
[1772655674334,1.17577492,93.366,93.285,1.7469281]
[1772655675816,1.17528558,93.361,93.285,1.7469281]
[1772655676425,3.69383402,93.353,93.285,1.7469281]
[1772655676636,1.17528558,93.35,93.262,1.7469281]
[1772655677331,1.17568804,93.341,93.262,1.7469281]
[1772655677711,1.17568804,93.341,93.261,10.72259572]
[1772655677712,1.17568804,93.341,93.265,2.03125124]
[1772655678322,1.17568804,93.341,93.267,2.03125124]
[1772655678933,1.17622802,93.339,93.267,2.03125124]
[1772655680027,1.17380013,93.329,93.267,1.7469281]
[1772655680225,1.17380013,93.329,93.269,1.85381485]
[1772655681530,8.80293285,93.426,93.273,1.85381485]
[1772655681774,1.17332334,93.392,93.273,1.85381485]
[1772655681929,1.17332334,93.357,93.273,1.85381485]
[1772655682110,0.28432314,93.34,93.273,1.85381485]
[1772655682320,1.17332334,93.339,93.273,1.85381485]
[1772655683638,1.17332334,93.339,93.275,1.85381485]
[1772655684733,1.17332334,93.339,93.277,1.85381485]
[1772655686915,1.17332334,93.339,93.279,1.84528046]
[1772655689111,1.17332334,93.339,93.283,1.84528046]
[1772655689544,1.16722921,93.333,93.283,1.84528046]
[1772655689840,1.16722921,93.329,93.283,1.84528046]
[1772655690734,1.16916621,93.348,93.283,1.84528046]
[1772655691032,1.16916621,93.348,93.285,1.84528046]
[1772655691836,1.1689774,93.338,93.285,1.84528046]
[1772655692842,1.1689774,93.338,93.273,26.80282766]
[1772655692843,1.1689774,93.338,93.287,1.84528046]
[1772655694937,1.1689774,93.338,93.289,1.84528046]
[1772655695941,1.16828605,93.328,93.266,1.84528046]
[1772655696121,1.16828605,93.318,93.266,1.84528046]
[1772655696521,1.16828605,93.31,93.266,1.84528046]
[1772655696774,1.16810756,93.298,93.266,1.84528046]
[1772655697340,1.16810756,93.298,93.232,48.22]
[1772655697341,1.16810756,93.294,93.202,1.07293834]
[1772655697531,0.96810756,93.278,93.232,1.84528046]
[1772655697839,4.82477569,93.313,93.232,1.84528046]
[1772655697840,0.96809205,93.268,93.232,1.84528046]
[1772655706045,0.96809205,93.268,93.202,2.1296036]
[1772655706249,0.96809205,93.268,93.203,1.84528046]
[1772655706727,0.28432314,93.293,93.212,0.28432314]
[1772655707053,3.69383402,93.302,93.202,37.83716534]
[1772655707054,0.96812473,93.278,93.213,1.84528046]
[1772655707842,0.96812473,93.278,93.215,1.84528046]
[1772655708341,0.28432314,93.284,93.215,1.84528046]
[1772655708542,0.28432314,93.293,93.223,1.83086431]
[1772655708728,0.28432314,93.289,93.223,1.83086431]
[1772655708933,0.96589532,93.288,93.223,1.83086431]
[1772655709253,4.29115485,93.413,93.223,1.83086431]
[1772655709254,0.28432314,93.269,93.223,1.83086431]
[1772655709454,0.96589532,93.268,93.223,1.83086431]
[1772655710731,0.96589532,93.268,93.199,26.82407986]
[1772655710732,0.96589532,93.268,93.2,2.11518745]
[1772655711953,0.96589532,93.268,93.199,26.82407986]
[1772655711954,0.96589532,93.268,93.203,1.83086431]
[1772655712151,3.69383402,93.297,93.19,0.2]
[1772655712152,0.96589017,93.264,93.19,0.2]
[1772655712361,3.69383402,93.239,93.18,2.03086431]
[1772655712551,3.69383402,93.24,93.18,2.03086431]
[1772655712552,0.28432314,93.216,93.18,2.03086431]
[1772655712855,0.28432314,93.214,93.18,2.03086431]
[1772655713051,0.96589481,93.209,93.18,2.03086431]
[1772655713239,0.96589481,93.209,93.18,0.2]
[1772655715162,0.28432314,93.202,93.17,0.2]
[1772655715456,0.76817076,93.199,93.17,0.2]
[1772655716159,0.77057698,93.221,93.17,2.03086431]
[1772655716361,0.28432314,93.202,93.17,2.03086431]
[1772655716656,0.28432314,93.2,93.17,2.03086431]
[1772655716956,0.77295205,93.199,93.17,0.2]
[1772655717857,0.77295205,93.199,93.16,0.2]
[1772655718064,0.28432314,93.2,93.16,0.2]
[1772655718065,0.28432314,93.19,93.16,0.2]
[1772655718266,0.5730218,93.189,93.16,0.2]
[1772655720864,0.57157862,93.199,93.161,1.83086431]
[1772655721054,3.69383402,93.222,93.161,1.83086431]
[1772655721055,0.57157862,93.213,93.161,1.83086431]
[1772655721255,0.57157862,93.239,93.163,1.83086431]
[1772655721458,0.57157862,93.301,93.172,0.28432314]
[1772655721791,104.9,93.324,93.173,1.83086431]
[1772655721792,3.69383402,93.291,93.173,1.83086431]
[1772655722062,0.57183846,93.252,93.175,1.83086431]
[1772655722263,0.8561616,93.249,93.175,1.83086431]
[1772655722470,0.57183846,93.248,93.175,1.83086431]
[1772655722654,0.57206526,93.299,93.185,1.83086431]
[1772655722856,0.57206526,93.299,93.193,1.83086431]
[1772655723164,0.14216157,93.279,93.193,1.83086431]
[1772655723344,0.28432314,93.272,93.193,1.83086431]
[1772655723544,0.71422683,93.27,93.193,1.83086431]
[1772655723767,0.57206526,93.27,93.193,1.83086431]
[1772655724062,0.28432314,93.269,93.195,1.83086431]
[1772655724655,0.57073967,93.269,93.195,1.83086431]
[1772655725770,0.57073967,93.269,93.197,1.83086431]
[1772655725974,0.57139807,93.279,93.197,1.83086431]
[1772655726862,0.57139807,93.279,93.203,1.83086431]
[1772655727752,0.57139807,93.279,93.205,1.83086431]
[1772655728675,0.57185235,93.269,93.205,1.83086431]
[1772655729170,0.56989566,93.278,93.205,1.83086431]